bitfinex/quotes_BTCUSD_20230114
["timestamp","ask_amount","ask_price","bid_price","bid_amount"]
[1673723907035,0.25853319,20802.0,20798.0,0.377]
[1673723907469,0.15488117,20801.0,20798.0,0.377]
[1673723907472,0.91733113,20801.0,20798.0,0.377]
[1673723907686,0.210986,20800.0,20798.0,0.377]
[1673723907899,0.480781,20800.0,20799.0,0.26194766]
[1673723908124,0.695767,20800.0,20799.0,0.26194766]
[1673723908560,0.480781,20800.0,20799.0,0.26194766]
[1673723909063,0.691767,20800.0,20799.0,0.26194766]
[1673723909321,0.480781,20800.0,20799.0,0.26194766]
[1673723909579,0.694767,20800.0,20799.0,0.33294766]
[1673723909846,0.483781,20800.0,20799.0,0.33294766]
[1673723910360,0.003,20800.0,20799.0,0.33294766]
[1673723910859,0.71068779,20803.0,20799.0,0.56194766]
[1673723911154,0.003,20800.0,20799.0,0.33294766]
[1673723911363,0.213986,20800.0,20799.0,0.071]
[1673723911662,0.26148082,20801.0,20798.0,0.58954315]
[1673723911895,0.26148082,20801.0,20799.0,0.29066537]
[1673723912132,0.89282672,20803.0,20799.0,0.29066537]
[1673723912411,0.003,20800.0,20799.0,0.55239132]
[1673723912634,0.003,20800.0,20799.0,0.66166537]
[1673723912895,0.003,20800.0,20799.0,1.432581]
[1673723913153,0.003,20800.0,20799.0,1.75249]
[1673723913394,0.003,20800.0,20799.0,1.432581]
[1673723913683,0.24099204,20803.0,20800.0,0.1]
[1673723913893,0.24099204,20803.0,20800.0,1.07148795]
[1673723914381,0.24099204,20803.0,20800.0,0.880762]
[1673723915143,0.24099204,20803.0,20801.0,0.27679874]
[1673723915397,0.25064858,20802.0,20799.0,0.23212177]
[1673723915663,0.210986,20801.0,20799.0,0.23212177]
[1673723915908,0.210986,20801.0,20798.0,0.377]
[1673723915909,0.210986,20800.0,20798.0,0.377]
[1673723916169,0.63565017,20800.0,20798.0,0.377]
[1673723916425,0.15488117,20799.0,20798.0,0.08705378]
[1673723916681,0.84665917,20799.0,20798.0,0.08705378]
[1673723916925,1.17257,20799.0,20798.0,0.08705378]
[1673723917442,1.17257,20799.0,20798.0,0.22705378]
[1673723917702,0.1,20798.0,20795.0,0.00310115]
[1673723917950,1.442514,20797.0,20795.0,0.00310115]
[1673723918208,0.210986,20796.0,20795.0,0.00310115]
[1673723918462,1.172708,20796.0,20795.0,0.00310115]
[1673723919454,1.172708,20796.0,20795.0,0.00410115]
[1673723919713,1.172708,20796.0,20795.0,0.00310115]
[1673723919714,1.572708,20796.0,20795.0,0.00310115]
[1673723920045,0.1,20795.0,20793.0,0.00323435]
[1673723920252,1.442721,20794.0,20793.0,0.00323435]
[1673723920508,1.44306632,20794.0,20793.0,0.00323435]
[1673723921246,1.1728,20794.0,20793.0,0.00323435]
[1673723921497,0.480907,20794.0,20793.0,0.24914574]
[1673723921743,0.691893,20794.0,20793.0,0.24914574]
[1673723922008,0.480887,20795.0,20793.0,0.00323435]
[1673723922258,0.480887,20795.0,20794.0,0.23537495]
[1673723922259,0.470887,20795.0,20794.0,0.23537495]
[1673723922762,0.681873,20795.0,20794.0,0.23537495]
[1673723923010,0.470887,20795.0,20794.0,0.23537495]
[1673723923261,0.605887,20795.0,20794.0,0.23537495]
[1673723923521,0.681873,20795.0,20793.0,0.00323435]
[1673723923770,0.606887,20795.0,20794.0,0.001]
[1673723924053,1.298757,20795.0,20794.0,0.001]
[1673723924313,1.95226745,20795.0,20794.0,0.001]
[1673723924557,1.84465242,20795.0,20794.0,0.001]
[1673723924814,1.70865242,20795.0,20793.0,0.00323435]
[1673723925090,1.63266642,20795.0,20793.0,0.00423435]
[1673723925350,0.310986,20794.0,20793.0,0.00423435]
[1673723925615,1.53224084,20794.0,20793.0,0.00423435]
[1673723925861,1.53224084,20794.0,20793.0,0.00323435]
[1673723926107,1.2728,20794.0,20793.0,0.00423435]
[1673723926353,1.2728,20794.0,20793.0,0.00323435]
[1673723926602,1.4088,20794.0,20793.0,0.00423435]
[1673723926859,1.55699806,20794.0,20793.0,0.00323435]
[1673723927636,1.69299806,20794.0,20793.0,0.00423435]
[1673723927911,1.55699806,20794.0,20793.0,0.00323435]
[1673723928189,1.99299806,20794.0,20793.0,0.00423435]
[1673723928441,1.59299806,20794.0,20793.0,0.00416775]
[1673723929740,1.89299806,20794.0,20793.0,0.00416775]
[1673723930174,2.66610575,20794.0,20793.0,0.00416775]
[1673723930428,3.15180744,20794.0,20793.0,0.00416775]
[1673723930675,3.36715146,20794.0,20793.0,0.00416775]
[1673723930927,1.66555357,20794.0,20793.0,0.00416775]
[1673723931185,1.53269157,20794.0,20793.0,0.00416775]
[1673723931430,1.3088,20794.0,20793.0,0.00416775]
[1673723932195,1.58148934,20794.0,20793.0,0.00416775]
[1673723933709,1.37050334,20794.0,20793.0,0.00416775]
[1673723934468,1.47996531,20794.0,20793.0,0.00416775]
[1673723934718,1.37996531,20794.0,20793.0,0.00416775]
[1673723936919,1.47996531,20794.0,20793.0,0.00416775]
[1673723937167,1.37996531,20794.0,20793.0,0.00416775]
[1673723937412,1.47996531,20794.0,20793.0,0.00416775]
[1673723937917,1.92137486,20794.0,20793.0,0.00416775]
[1673723939136,1.82137486,20794.0,20793.0,0.00416775]
[1673723939394,1.92137486,20794.0,20793.0,0.00416775]
[1673723939647,1.82137486,20794.0,20793.0,0.00416775]
[1673723940633,1.93111655,20794.0,20793.0,0.00416775]
[1673723940882,2.089707,20794.0,20793.0,0.00416775]
[1673723941101,1.789707,20794.0,20793.0,0.00416775]
[1673723941355,2.089707,20794.0,20793.0,0.00416775]
[1673723941902,1.789707,20794.0,20793.0,0.00416775]
[1673723943468,2.089707,20794.0,20793.0,0.00416775]
[1673723943725,2.44646057,20794.0,20793.0,0.00416775]
[1673723944752,2.23111655,20794.0,20793.0,0.00416775]
[1673723945007,1.789707,20794.0,20793.0,0.00416775]
[1673723945258,1.789707,20794.0,20793.0,0.23930203]
[1673723945259,0.827893,20794.0,20793.0,0.23930203]
[1673723945566,0.827893,20794.0,20793.0,0.00416775]
[1673723945777,0.616907,20794.0,20793.0,0.00416775]
[1673723946044,0.136,20794.0,20793.0,0.00416775]
[1673723946282,0.346986,20794.0,20793.0,0.29079993]
[1673723946527,0.136,20794.0,20793.0,0.29079993]
[1673723947044,0.136,20794.0,20793.0,0.77173093]
[1673723947300,0.136,20794.0,20793.0,1.28604775]
[1673723947549,0.24,20795.0,20794.0,0.22356101]
[1673723947795,0.24,20795.0,20794.0,0.70446801]
[1673723948568,0.24,20795.0,20794.0,0.800907]
[1673723948822,0.24,20795.0,20794.0,1.100907]
[1673723949069,0.23942174,20795.0,20794.0,1.100907]
[1673723949368,0.23942174,20795.0,20794.0,1.200907]
[1673723949576,0.24142174,20795.0,20794.0,1.160907]
[1673723949860,0.23942174,20795.0,20794.0,1.200907]
[1673723950095,0.24242174,20795.0,20794.0,1.815814]
[1673723950343,0.23942174,20795.0,20794.0,1.581814]
[1673723950598,0.24142174,20795.0,20794.0,1.641814]
[1673723951113,0.24142174,20795.0,20794.0,2.1720313]
[1673723951357,0.24142174,20795.0,20794.0,2.2720313]
[1673723951603,0.23942174,20795.0,20794.0,2.2120313]
[1673723951919,0.24242174,20795.0,20794.0,1.19676361]
[1673723952143,0.23942174,20795.0,20794.0,0.58185661]
[1673723952408,0.24242174,20795.0,20794.0,0.71985661]
[1673723952637,0.23942174,20795.0,20794.0,0.58185661]
[1673723952892,0.23942174,20795.0,20793.0,0.96500575]
[1673723952893,0.24242174,20795.0,20793.0,0.00316775]
[1673723953172,0.45537299,20795.0,20793.0,0.23749454]
[1673723953399,0.61325416,20795.0,20794.0,0.139]
[1673723953645,1.41714899,20795.0,20793.0,0.00316775]
[1673723953904,0.27875661,20794.0,20793.0,0.00316775]
[1673723954144,1.24057061,20794.0,20793.0,0.00316775]
[1673723955186,1.46055661,20794.0,20793.0,0.00316775]
[1673723955418,1.24057061,20794.0,20793.0,0.00316775]
[1673723955666,1.48955661,20794.0,20793.0,0.00816775]
[1673723955910,1.27857061,20794.0,20793.0,0.00816775]
[1673723956405,1.24057061,20794.0,20793.0,0.00316775]
[1673723956669,1.24957061,20794.0,20793.0,0.00316775]
[1673723956922,1.46055661,20794.0,20793.0,0.00316775]
[1673723957448,1.24057061,20794.0,20793.0,0.00316775]
[1673723957659,1.27857061,20794.0,20793.0,0.00816775]
[1673723958147,1.45155661,20794.0,20793.0,0.00316775]
[1673723958405,1.46055661,20794.0,20793.0,0.00316775]
[1673723958655,1.24057061,20794.0,20793.0,0.00316775]
[1673723958905,1.48955661,20794.0,20793.0,0.00816775]
[1673723959154,1.45155661,20794.0,20793.0,0.00316775]
[1673723959414,1.46055661,20794.0,20793.0,0.00316775]
[1673723959664,1.24057061,20794.0,20793.0,0.00316775]
[1673723959913,1.1728,20794.0,20793.0,0.00316775]
[1673723960162,1.26073046,20794.0,20793.0,0.00316775]
[1673723960414,1.59107112,20794.0,20793.0,0.00316775]
[1673723960661,1.33015466,20794.0,20793.0,0.00816775]
[1673723961402,1.29215466,20794.0,20793.0,0.00316775]
[1673723961661,1.32915466,20794.0,20793.0,0.04042016]
[1673723962466,1.44629498,20794.0,20793.0,0.04042016]
[1673723962696,1.2098,20794.0,20793.0,0.04042016]
[1673723963727,1.42839814,20794.0,20793.0,0.04042016]
[1673723963975,1.96270316,20794.0,20793.0,0.04042016]
[1673723964218,1.690707,20794.0,20793.0,0.04042016]
[1673723964473,1.99578684,20794.0,20793.0,0.04042016]
[1673723964724,2.13719639,20794.0,20793.0,0.04042016]
[1673723964999,2.31113086,20794.0,20793.0,0.04042016]
[1673723965235,2.35485795,20794.0,20793.0,0.04042016]
[1673723965490,2.21113086,20794.0,20793.0,0.04042016]
[1673723965745,2.79416291,20794.0,20793.0,0.04042016]
[1673723965998,2.61418949,20794.0,20793.0,0.04042016]
[1673723966516,2.97316193,20794.0,20793.0,0.04042016]
[1673723966765,2.05001399,20794.0,20793.0,0.04042016]
[1673723967267,1.90629086,20794.0,20793.0,0.04042016]
[1673723967529,2.18932291,20794.0,20793.0,0.04042016]
[1673723967764,2.66808278,20794.0,20793.0,0.04042016]
[1673723968012,2.77391283,20794.0,20793.0,0.04042016]
[1673723968514,3.06137605,20794.0,20793.0,0.04042016]
[1673723968789,3.07930605,20794.0,20793.0,0.04042016]
[1673723969794,2.43287039,20794.0,20793.0,0.04042016]
[1673723970048,2.55620039,20794.0,20793.0,0.04042016]
[1673723970301,2.91551702,20794.0,20793.0,0.04042016]
[1673723970551,2.45620039,20794.0,20793.0,0.04042016]
[1673723970851,3.03340208,20794.0,20793.0,0.04042016]
[1673723971059,2.94190208,20794.0,20793.0,0.04042016]
[1673723971316,3.3012189,20794.0,20793.0,0.04042016]
[1673723971567,0.00404185,20792.0,20790.0,0.00380839]
[1673723971818,3.00413124,20791.0,20789.0,0.00482116]
[1673723972122,0.35468345,20790.0,20789.0,0.00482116]
[1673723972326,1.53222903,20790.0,20789.0,0.00482116]
[1673723972598,1.57348903,20790.0,20789.0,0.00482116]
[1673723972836,2.57799233,20790.0,20789.0,0.00482116]
[1673723973090,2.72169371,20790.0,20789.0,0.00482116]
[1673723973399,2.42169385,20790.0,20789.0,0.00475456]
[1673723973611,2.74463247,20790.0,20789.0,0.00475456]
[1673723973870,2.88137045,20790.0,20789.0,0.00775456]
[1673723974621,2.88137045,20790.0,20789.0,0.00475456]
[1673723974622,2.57788996,20790.0,20789.0,0.00475456]
[1673723974874,2.23392645,20790.0,20789.0,0.00575456]
[1673723975142,2.01848324,20790.0,20789.0,0.00575456]
[1673723975621,2.01848324,20790.0,20789.0,0.10200456]
[1673723975891,0.57548324,20790.0,20789.0,0.10200456]
[1673723976127,0.22849724,20790.0,20789.0,0.00475456]
[1673723976374,0.22849724,20790.0,20789.0,0.00575456]
[1673723976375,0.136,20790.0,20789.0,0.00575456]
[1673723976623,0.136,20790.0,20789.0,0.27856974]
[1673723977617,0.26727178,20792.0,20789.0,0.27756974]
[1673723977865,0.03,20790.0,20789.0,0.28356974]
[1673723978107,0.26727178,20792.0,20789.0,0.27756974]
[1673723978610,0.26727178,20792.0,20789.0,0.46829569]
[1673723978854,0.03,20790.0,20789.0,0.28356974]
[1673723979104,0.00404185,20792.0,20789.0,0.27756974]
[1673723979339,0.30195301,20792.0,20789.0,0.28356974]
[1673723979591,0.30195301,20792.0,20789.0,0.27756974]
[1673723979826,0.03,20790.0,20789.0,0.28356974]
[1673723980078,0.27195301,20792.0,20789.0,0.27756974]
[1673723980322,0.27195301,20792.0,20789.0,0.28356974]
[1673723980583,0.27195301,20792.0,20790.0,0.29918878]
[1673723980584,0.30195301,20792.0,20790.0,0.29918878]
[1673723981086,0.78290801,20792.0,20790.0,0.29918878]
[1673723982105,0.75290801,20792.0,20790.0,0.29918878]
[1673723982356,0.78290801,20792.0,20789.0,0.22118816]
[1673723982862,0.88690801,20792.0,20790.0,0.004]
[1673723983374,0.75290801,20792.0,20789.0,0.22118816]
[1673723983630,0.75290801,20792.0,20789.0,0.22718816]
[1673723983887,0.78290801,20792.0,20789.0,0.22118816]
[1673723984881,0.88690801,20792.0,20790.0,0.22748154]
[1673723985140,0.2705758,20791.0,20789.0,0.00475456]
[1673723985388,0.2705758,20791.0,20789.0,0.27389402]
[1673723985637,0.2705758,20791.0,20789.0,0.25789402]
[1673723985891,0.961976,20791.0,20790.0,0.004]
[1673723986144,0.961976,20791.0,20787.0,0.04799515]
[1673723986145,1.86938221,20791.0,20787.0,0.04799515]
[1673723986394,0.29854986,20790.0,20789.0,0.006]
[1673723986643,1.31665469,20790.0,20789.0,0.006]
[1673723987665,1.5320979,20790.0,20786.0,0.00316332]
[1673723987933,1.47599307,20790.0,20787.0,0.034]
[1673723988178,0.35465469,20789.0,20787.0,0.034]
[1673723988455,1.443138,20788.0,20786.0,0.00316332]
[1673723988713,0.210986,20787.0,20786.0,0.03416332]
[1673723988941,1.173124,20787.0,20786.0,0.00316332]
[1673723989175,1.41650059,20787.0,20786.0,0.00316332]
[1673723989906,1.70333649,20787.0,20786.0,0.00316332]
[1673723990391,1.80533649,20787.0,20786.0,0.00716332]
[1673723991125,1.5619599,20787.0,20786.0,0.00716332]
[1673723992115,1.8019599,20787.0,20786.0,0.00716332]
[1673723992868,1.515124,20787.0,20786.0,0.00716332]
[1673723993652,1.6531722,20787.0,20786.0,0.00316332]
[1673723993899,1.7881722,20787.0,20786.0,0.00616332]
[1673723994407,1.5771862,20787.0,20786.0,0.00616332]
[1673723994670,1.7881722,20787.0,20786.0,0.00616332]
[1673723996685,1.0961172,20787.0,20786.0,0.10241332]
[1673723997173,1.0961172,20787.0,20786.0,0.00616332]
[1673723997457,1.5771862,20787.0,20786.0,0.00616332]
[1673723997712,1.7881722,20787.0,20786.0,0.00616332]
[1673723997962,1.5771862,20787.0,20786.0,0.00616332]
[1673723998477,0.6150482,20787.0,20786.0,0.00616332]
[1673723999457,1.0961172,20787.0,20786.0,0.00616332]
[1673724000685,1.0961172,20787.0,20786.0,0.10241332]
[1673724000686,0.375,20787.0,20786.0,0.10241332]
[1673724000949,0.375,20787.0,20786.0,0.34870979]
[1673724001198,0.375,20787.0,20786.0,0.66880879]
[1673724001693,0.374315,20787.0,20786.0,1.61089579]
[1673724001954,0.374315,20787.0,20786.0,1.93099479]
[1673724002466,0.481014,20790.0,20786.0,1.93099479]
[1673724002717,0.62868554,20792.0,20787.0,0.59072595]
[1673724002962,0.28421741,20792.0,20788.0,1.15279595]
[1673724003206,0.28421741,20792.0,20789.0,0.19072595]
[1673724003538,0.28421741,20792.0,20789.0,0.67174095]
[1673724003759,0.015,20790.0,20789.0,0.481015]
[1673724004012,0.00404185,20792.0,20789.0,1.582128]
[1673724004253,0.00404185,20792.0,20789.0,0.962038]
[1673724004254,0.00504185,20792.0,20789.0,0.962038]
[1673724004495,0.00504185,20792.0,20790.0,0.320073]
[1673724004755,0.00604185,20792.0,20790.0,0.480995]
[1673724005004,0.00604185,20792.0,20791.0,0.320056]
[1673724005250,0.00604185,20792.0,20791.0,0.55752138]
[1673724005496,0.00604185,20792.0,20791.0,1.03849838]
[1673724005743,0.00604185,20792.0,20791.0,1.33849838]
[1673724005987,0.00404185,20792.0,20791.0,1.33849838]
[1673724006237,0.00404185,20792.0,20791.0,1.51947538]
[1673724006497,0.00404185,20792.0,20791.0,1.81947538]
[1673724007012,0.00504185,20792.0,20791.0,1.58201]
[1673724007261,0.00504185,20792.0,20791.0,2.10850724]
[1673724007511,0.00604185,20792.0,20791.0,2.45268711]
[1673724007773,0.00604185,20792.0,20791.0,2.69212528]
[1673724008046,0.00604185,20792.0,20791.0,2.93341792]
[1673724008295,0.00604185,20792.0,20791.0,4.58430218]
[1673724008612,0.00504185,20792.0,20791.0,4.37238541]
[1673724008806,0.00504185,20792.0,20791.0,4.40038541]
[1673724009060,0.00504185,20792.0,20791.0,4.26238541]
[1673724009307,0.00604185,20792.0,20791.0,4.40038541]
[1673724009560,0.00604185,20792.0,20791.0,2.89732697]
[1673724010582,0.00404185,20792.0,20791.0,2.23311169]
[1673724010860,0.00504185,20792.0,20791.0,2.67111169]
[1673724011359,0.00504185,20792.0,20791.0,2.77111169]
[1673724011615,0.00404185,20792.0,20791.0,2.53311169]
[1673724012381,0.00504185,20792.0,20791.0,2.63311169]
[1673724012658,0.00404185,20792.0,20791.0,3.15960893]
[1673724012941,0.00504185,20792.0,20791.0,3.29760893]
[1673724013193,0.00404185,20792.0,20791.0,3.15960893]
[1673724013448,0.00504185,20792.0,20791.0,3.29760893]
[1673724013998,0.24504185,20792.0,20791.0,3.29760893]
[1673724014271,0.24504185,20792.0,20791.0,3.33890157]
[1673724014534,0.24404185,20792.0,20791.0,3.20090157]
[1673724014787,0.24,20792.0,20791.0,2.72700157]
[1673724015060,0.241,20792.0,20791.0,2.82370893]
[1673724015307,0.241,20792.0,20791.0,2.72370893]
[1673724015544,0.24,20792.0,20791.0,2.58570893]
[1673724015785,0.241,20792.0,20791.0,2.72370893]
[1673724016033,0.241,20792.0,20791.0,2.58570893]
[1673724016034,0.24,20792.0,20791.0,2.58570893]
[1673724016285,0.241,20792.0,20791.0,2.72370893]
[1673724016981,0.241,20792.0,20791.0,3.20468593]
[1673724017229,0.241,20792.0,20791.0,2.67818869]
[1673724017987,0.241,20792.0,20791.0,2.9311871]
[1673724018234,0.241,20792.0,20791.0,2.6607834]
[1673724018484,0.241,20792.0,20791.0,2.37818869]
[1673724018731,0.241,20792.0,20791.0,2.66291475]
[1673724019246,0.24,20792.0,20791.0,2.24018869]
[1673724019499,0.241,20792.0,20791.0,2.93437709]
[1673724020748,0.39588117,20792.0,20791.0,2.1571754]
[1673724021016,0.50701421,20792.0,20791.0,0.139]
[1673724021775,0.50701421,20792.0,20790.0,0.2955824]
[1673724021776,0.98696821,20792.0,20790.0,0.2955824]
[1673724022034,0.98896821,20792.0,20791.0,0.139]
[1673724022537,0.98696821,20792.0,20788.0,1.17465215]
[1673724022794,1.14384938,20792.0,20791.0,0.139]
[1673724023046,0.98896821,20792.0,20791.0,0.139]
[1673724023849,0.98696821,20792.0,20789.0,0.22306386]
[1673724024072,0.98896821,20792.0,20789.0,0.22306386]
[1673724024320,0.98696821,20792.0,20789.0,0.22306386]
[1673724024568,1.46992221,20792.0,20791.0,0.14]
[1673724024820,1.46792221,20792.0,20788.0,0.962066]
[1673724025035,0.15488117,20791.0,20789.0,0.139]
[1673724025324,0.961981,20791.0,20789.0,0.139]
[1673724025827,0.23046181,20790.0,20787.0,0.27610354]
[1673724026081,0.86627106,20790.0,20787.0,0.27610354]
[1673724026337,0.86627106,20790.0,20787.0,0.04995453]
[1673724026619,0.71138989,20790.0,20787.0,0.04995453]
[1673724026883,0.71138989,20790.0,20789.0,0.139]
[1673724027123,0.71138989,20790.0,20787.0,0.04995453]
[1673724027371,1.19438989,20790.0,20787.0,0.18895453]
[1673724028352,0.22882237,20789.0,20787.0,0.18895453]
[1673724028610,0.22882237,20789.0,20787.0,0.48895453]
[1673724028897,0.22882237,20789.0,20788.0,0.320099]
[1673724029118,0.22882237,20789.0,20787.0,0.439]
[1673724029119,0.22882237,20789.0,20787.0,0.139]
[1673724029623,0.70984737,20789.0,20786.0,0.76560784]
[1673724029875,0.86672854,20789.0,20787.0,0.139]
[1673724030133,0.71184737,20789.0,20787.0,0.139]
[1673724031150,0.29205149,20788.0,20787.0,0.139]
[1673724031900,0.002,20789.0,20787.0,0.620069]
[1673724032122,0.002,20789.0,20788.0,0.87582888]
[1673724032363,0.47349189,20792.0,20790.0,0.002]
[1673724032620,0.22510727,20791.0,20790.0,0.19272595]
[1673724032878,0.22510727,20791.0,20790.0,0.09825]
[1673724033133,0.22510727,20791.0,20790.0,0.483]
[1673724033390,0.77627673,20791.0,20790.0,0.002]
[1673724033642,0.77627673,20791.0,20790.0,0.142]
[1673724033897,2.1472352,20791.0,20790.0,0.142]
[1673724034168,1.94921673,20791.0,20790.0,0.002]
[1673724034428,1.95121673,20791.0,20790.0,0.142]
[1673724034669,1.655917,20791.0,20790.0,0.142]
[1673724035177,1.655917,20791.0,20790.0,0.1415]
[1673724036175,1.88201897,20791.0,20790.0,0.1415]
[1673724036681,1.655917,20791.0,20790.0,0.1415]
[1673724039759,1.92848667,20791.0,20790.0,0.1415]
[1673724040017,1.655917,20791.0,20790.0,0.1415]
[1673724040807,1.87301012,20791.0,20790.0,0.1415]
[1673724045379,1.650917,20791.0,20790.0,0.1415]
[1673724045645,0.24,20792.0,20790.0,1.29892764]
[1673724045916,0.3591119,20798.0,20791.0,0.99653864]
[1673724046169,0.30306885,20799.0,20791.0,0.99653864]
[1673724046170,0.30844681,20799.0,20792.0,2.30594146]
[1673724046419,0.01559288,20799.0,20793.0,3.06104734]
[1673724046716,0.01559288,20799.0,20794.0,2.37168834]
[1673724046926,0.001,20798.0,20795.0,2.96084934]
[1673724047189,0.001,20798.0,20797.0,0.1]
[1673724047457,0.001,20798.0,20797.0,3.06071234]
[1673724047708,0.241,20798.0,20797.0,3.16998639]
[1673724048036,0.01632308,20803.0,20797.0,3.16998639]
[1673724048037,0.17646786,20814.0,20802.0,0.47720169]
[1673724048240,0.28665287,20816.0,20809.0,0.47720169]
[1673724048526,0.02248926,20820.0,20809.0,0.47720169]
[1673724048527,5.84829469,20819.0,20813.0,0.42677348]
[1673724048787,5.55079581,20819.0,20815.0,0.63967027]
[1673724049058,0.02248926,20820.0,20818.0,0.49751479]
[1673724049343,0.02248926,20820.0,20817.0,0.61934628]
[1673724049344,0.22254645,20818.0,20817.0,0.2842979]
[1673724049608,0.22254645,20818.0,20815.0,0.2842979]
[1673724049867,0.02248926,20820.0,20816.0,0.320111]
[1673724049868,0.26898962,20820.0,20816.0,0.320111]
[1673724050119,0.25236805,20818.0,20817.0,0.210208]
[1673724050370,0.02248926,20820.0,20815.0,0.04796701]
[1673724050633,0.17737043,20820.0,20815.0,0.23869296]
[1673724050891,0.17737043,20820.0,20813.0,0.51553681]
[1673724051157,0.15488117,20819.0,20815.0,0.04798225]
[1673724051400,0.04640088,20820.0,20818.0,0.138]
[1673724051659,0.6,20819.0,20812.0,0.51538434]
[1673724051929,0.15488117,20818.0,20815.0,0.04805163]
[1673724052170,0.15488117,20818.0,20812.0,0.19072595]
[1673724052435,0.15488117,20818.0,20812.0,0.04755]
[1673724052436,0.15488117,20817.0,20812.0,0.04755]
[1673724052674,0.15488117,20816.0,20812.0,0.04755]
[1673724053219,0.3,20818.0,20815.0,0.009]
[1673724053435,0.094126,20817.0,20815.0,0.009]
[1673724053714,0.64126,20819.0,20815.0,0.19972595]
[1673724054002,0.02248926,20820.0,20816.0,0.19072595]
[1673724054003,0.32168502,20818.0,20816.0,0.19072595]
[1673724054250,0.49969095,20820.0,20810.0,0.61567032]
[1673724054530,0.25905494,20819.0,20813.0,0.0477866]
[1673724054779,0.15488117,20818.0,20813.0,0.19072595]
[1673724055039,0.15488117,20818.0,20816.0,0.011]
[1673724055287,0.15488117,20818.0,20809.0,0.61525517]
[1673724055288,0.04126,20818.0,20809.0,0.61525517]
[1673724055547,0.15488117,20817.0,20811.0,0.1]
[1673724055860,0.2593052,20818.0,20812.0,0.19072595]
[1673724056107,0.2593052,20818.0,20817.0,0.09988958]
[1673724056377,0.2593052,20818.0,20817.0,0.50087353]
[1673724056637,0.02248926,20820.0,20817.0,0.31014758]
[1673724056878,0.29901875,20819.0,20817.0,0.29061553]
[1673724057123,0.29901875,20819.0,20817.0,0.09988958]
[1673724057366,0.29901875,20819.0,20818.0,0.320111]
[1673724057635,0.02248926,20820.0,20818.0,0.620111]
[1673724057868,0.02248926,20820.0,20819.0,0.510153]
[1673724058134,0.02248926,20820.0,20819.0,0.310153]
[1673724058629,0.02248926,20820.0,20818.0,0.14]
[1673724058897,0.02248926,20820.0,20815.0,0.5461]
[1673724059139,0.17737043,20820.0,20816.0,0.37884727]
[1673724059397,0.25869036,20819.0,20817.0,0.320111]
[1673724059714,0.25869036,20819.0,20818.0,0.210179]
[1673724060121,0.25869036,20819.0,20817.0,0.1]
[1673724060387,0.25969036,20819.0,20818.0,0.320111]
[1673724060874,0.28753325,20819.0,20818.0,0.418111]
[1673724061123,0.28653325,20819.0,20818.0,0.320111]
[1673724061372,0.001,20819.0,20818.0,0.141]
[1673724061623,0.001,20819.0,20814.0,0.04796641]
[1673724061868,0.15488117,20818.0,20814.0,0.04771141]
[1673724062103,0.480381,20817.0,20814.0,0.04771141]
[1673724062347,0.15488117,20817.0,20814.0,0.04771141]
[1673724062624,0.15488117,20816.0,20814.0,0.04771141]
[1673724062872,0.63528817,20816.0,20814.0,0.04771141]
[1673724063108,0.480407,20816.0,20811.0,0.27682633]
[1673724063353,0.480407,20816.0,20814.0,0.099]
[1673724063354,0.15488117,20815.0,20814.0,0.099]
[1673724063622,0.480422,20815.0,20811.0,0.04775797]
[1673724063873,0.63530317,20815.0,20811.0,0.04775797]
[1673724064366,0.15488117,20814.0,20811.0,0.04775797]
[1673724064608,0.960936,20813.0,20811.0,0.04775797]
[1673724064865,0.960936,20813.0,20807.0,0.81478764]
[1673724065104,0.15488117,20812.0,20807.0,0.86264311]
[1673724065358,0.15488117,20812.0,20810.0,0.28811719]
[1673724065620,0.28361878,20813.0,20811.0,0.320111]
[1673724065870,0.28361878,20813.0,20809.0,0.1]
[1673724066119,0.28361878,20813.0,20808.0,1.0814389]
[1673724066120,0.43849995,20813.0,20808.0,1.0814389]
[1673724066353,0.15488117,20812.0,20811.0,0.099]
[1673724066612,0.481428,20815.0,20808.0,0.19072595]
[1673724066613,0.63532917,20814.0,20808.0,0.19072595]
[1673724066858,0.15488117,20812.0,20809.0,0.14]
[1673724067113,0.04126,20810.0,20806.0,1.02109702]
[1673724067363,0.04126,20810.0,20807.0,0.04923235]
[1673724067364,1.59657617,20809.0,20807.0,0.04923235]
[1673724067606,0.15488117,20808.0,20806.0,1.02109702]
[1673724067853,1.441821,20807.0,20806.0,1.02109702]
[1673724069360,1.498081,20807.0,20801.0,0.41123465]
[1673724069602,0.15488117,20806.0,20801.0,0.41123465]
[1673724069867,0.15488117,20806.0,20801.0,0.6019606]
[1673724070110,0.96133,20805.0,20801.0,0.6019606]
[1673724070360,1.40558897,20805.0,20801.0,0.41123465]
[1673724070613,1.2507078,20805.0,20802.0,0.23194214]
[1673724070878,1.2507078,20805.0,20801.0,0.41123465]
[1673724071110,1.40558897,20805.0,20801.0,0.41123465]
[1673724071609,1.2507078,20805.0,20801.0,0.41123465]
[1673724071858,1.2517078,20805.0,20801.0,0.85053796]
[1673724072103,0.7700428,20805.0,20802.0,0.22118089]
[1673724072354,0.7710428,20805.0,20802.0,0.22118089]
[1673724072608,0.2402136,20804.0,20802.0,0.22118089]
[1673724073347,0.2402136,20804.0,20802.0,0.24718089]
[1673724073590,0.2402136,20804.0,20802.0,0.22118089]
[1673724073838,0.2402136,20804.0,20802.0,0.24718089]
[1673724074598,1.39183774,20804.0,20802.0,0.026]
[1673724074862,0.961355,20804.0,20801.0,0.41123465]
[1673724075109,0.24968124,20803.0,20802.0,0.026]
[1673724075361,0.73038024,20803.0,20801.0,0.41123465]
[1673724075606,1.21107924,20803.0,20802.0,0.026]
[1673724075856,1.21107924,20803.0,20801.0,0.41123465]
[1673724076103,1.40125506,20803.0,20801.0,0.41123465]
[1673724077121,1.38025506,20803.0,20801.0,0.41123465]
[1673724077627,0.23956831,20802.0,20801.0,0.41123465]
[1673724077889,1.20101431,20802.0,20801.0,0.41123465]
[1673724078180,1.25761212,20802.0,20801.0,0.41123465]
[1673724078514,1.20236249,20802.0,20801.0,0.41823465]
[1673724078724,1.20236249,20802.0,20801.0,0.41123465]
[1673724079003,0.981446,20802.0,20801.0,0.42123465]
[1673724079253,1.19938018,20802.0,20801.0,0.42123465]
[1673724079509,0.02,20802.0,20801.0,0.6119606]
[1673724079786,0.02,20802.0,20801.0,0.72123465]
[1673724080046,0.02,20802.0,20801.0,0.74134565]
[1673724080303,0.02,20802.0,20801.0,1.03097546]
[1673724080578,0.02,20802.0,20801.0,1.33097546]
[1673724080833,0.02,20802.0,20801.0,1.51172146]